[Event "Kwalificatie NJK A Groningen"]
[Site "Hoogkerk, Netherlands"]
[Date "2023.02.18"]
[Round "1.1"]
[White "Slagboom, Leandro"]
[Black "Bon, Gijs"]
[Result "1-0"]
[TimeControl "55 min. + 10 sec./zet"]
[WhiteElo "2201"]
[BlackElo "1669"]

1. e4 {[%clk 00:55:18]} {[%emt 00:00:02]} c6 {[%clk 00:55:09]} {[%emt
00:00:12]} 2. d4 {[%clk 00:55:22]} {[%emt 00:00:06]} d5 {[%clk 00:55:15]}
{[%emt 00:00:04]} 3. f3 {[%clk 00:55:16]} {[%emt 00:00:16]} dxe4 {[%clk
00:53:02]} {[%emt 00:02:22]} 4. fxe4 {[%clk 00:55:15]} {[%emt 00:00:11]} e5
{[%clk 00:53:05]} {[%emt 00:00:07]} 5. Nf3 {[%clk 00:55:20]} {[%emt 00:00:05]}
Bg4 {[%clk 00:53:11]} {[%emt 00:00:05]} 6. c3 {[%clk 00:55:13]} {[%emt
00:00:16]} Nf6 {[%clk 00:49:40]} {[%emt 00:03:41]} 7. Bd3 {[%clk 00:54:49]}
{[%emt 00:00:34]} Nbd7 {[%clk 00:47:26]} {[%emt 00:02:24]} 8. O-O {[%clk
00:54:42]} {[%emt 00:00:17]} Be7 {[%clk 00:44:11]} {[%emt 00:03:25]} 9. Nbd2
{[%clk 00:53:59]} {[%emt 00:00:53]} Qc7 {[%clk 00:24:50]} {[%emt 00:19:31]} 10.
Qe1 {[%clk 00:53:07]} {[%emt 00:01:01]} O-O {[%clk 00:16:56]} {[%emt 00:08:05]}
11. Qg3 {[%clk 00:51:19]} {[%emt 00:01:58]} Bd6 {[%clk 00:15:57]} {[%emt
00:01:09]} 12. Nc4 {[%clk 00:50:22]} {[%emt 00:01:07]} Bxf3 {[%clk 00:14:50]}
{[%emt 00:01:17]} 13. Rxf3 {[%clk 00:49:56]} {[%emt 00:00:36]} b5 {[%clk
00:08:56]} {[%emt 00:06:04]} 14. Nxd6 {[%clk 00:48:04]} {[%emt 00:02:01]} Qxd6
{[%clk 00:09:00]} {[%emt 00:00:07]} 15. Bg5 {[%clk 00:47:09]} {[%emt 00:01:05]}
Qe6 {[%clk 00:01:34]} {[%emt 00:07:36]} 16. Raf1 {[%clk 00:42:59]} {[%emt
00:04:21]} Kh8 {[%clk 00:01:40]} {[%emt 00:00:08]} 17. Qh4 {[%clk 00:40:43]}
{[%emt 00:02:21]} Ng8 {[%clk 00:00:19]} {[%emt 00:01:31]} 18. d5 {[%clk
00:40:10]} {[%emt 00:00:43]} Qg6 {[%clk 00:00:12]} {[%emt 00:00:17]} 19. Rg3
{[%clk 00:39:17]} {[%emt 00:01:03]} f6 {[%clk 00:00:11]} {[%emt 00:00:11]} 20.
Be3 {[%clk 00:38:29]} {[%emt 00:00:58]} Qf7 {[%clk 00:00:11]} {[%emt 00:00:10]}
21. dxc6 {[%clk 00:38:25]} {[%emt 00:00:13]} Nb6 {[%clk 00:00:12]} {[%emt
00:00:10]} 22. b3 {[%clk 00:36:07]} {[%emt 00:02:29]} Rac8 {[%clk 00:00:11]}
{[%emt 00:00:10]} 23. Bxb5 {[%clk 00:35:58]} {[%emt 00:00:19]} a6 {[%clk
00:00:11]} {[%emt 00:00:10]} 24. Bxa6 {[%clk 00:35:23]} {[%emt 00:00:45]} Rxc6
{[%clk 00:00:11]} {[%emt 00:00:10]} 25. Bb5 {[%clk 00:35:02]} {[%emt 00:00:31]}
Re6 {[%clk 00:00:14]} {[%emt 00:00:07]} 26. a4 {[%clk 00:34:53]} {[%emt
00:00:19]} Qc7 {[%clk 00:00:11]} {[%emt 00:00:12]} 27. a5 {[%clk 00:33:54]}
{[%emt 00:01:10]} Nd7 {[%clk 00:00:11]} {[%emt 00:00:10]} 28. Qg4 {[%clk
00:33:33]} {[%emt 00:00:31]} Re7 {[%clk 00:00:16]} {[%emt 00:00:04]} 29. b4
{[%clk 00:33:03]} {[%emt 00:00:40]} Rb8 {[%clk 00:00:13]} {[%emt 00:00:14]} 30.
c4 {[%clk 00:32:51]} {[%emt 00:00:25]} Nf8 {[%clk 00:00:12]} {[%emt 00:00:08]}
31. Bc5 {[%clk 00:32:24]} {[%emt 00:00:37]} Rf7 {[%clk 00:00:12]} {[%emt
00:00:09]} 32. a6 {[%clk 00:32:17]} {[%emt 00:00:17]} Nd7 {[%clk 00:00:15]}
{[%emt 00:00:08]} 33. Bxd7 {[%clk 00:31:46]} {[%emt 00:00:53]} Rxd7 {[%clk
00:00:11]} {[%emt 00:00:01]} 34. a7 {[%clk 00:30:28]} {[%emt 00:01:28]} Ra8
{[%clk 00:00:16]} {[%emt 00:00:05]} 35. Ra1 {[%clk 00:29:12]} {[%emt 00:01:26]}
Nh6 {[%clk 00:00:20]} {[%emt 00:00:06]} 36. Qe6 {[%clk 00:29:06]} {[%emt
00:00:16]} Nf7 {[%clk 00:00:18]} {[%emt 00:00:13]} 37. Bb6 {[%clk 00:27:37]}
{[%emt 00:01:39]} Rd6 {[%clk 00:00:11]} {[%emt 00:00:17]} 38. Bxc7 {[%clk
00:27:26]} {[%emt 00:00:21]} Rxe6 {[%clk 00:00:19]} {[%emt 00:00:02]} 39. b5
{[%clk 00:27:07]} {[%emt 00:00:29]} Nd6 {[%clk 00:00:11]} {[%emt 00:00:17]} 40.
Rd3 {[%clk 00:26:47]} {[%emt 00:00:31]} Nb7 {[%clk 00:00:12]} {[%emt 00:00:09]}
41. c5 {[%clk 00:26:24]} {[%emt 00:00:33]} 1-0

[Event "Kwalificatie NJK A Groningen"]
[Site "Hoogkerk, Netherlands"]
[Date "2023.02.18"]
[Round "1.2"]
[White "Jacobs, Yanick"]
[Black "Van Kuijk, Vadim"]
[Result "0-1"]
[TimeControl "55 min. + 10 sec./zet"]
[WhiteElo "1652"]
[BlackElo "2023"]

1. d4 {[%clk 00:55:16]} {[%emt 00:03:27]} d5 {[%clk 00:41:39]} {[%emt
00:10:27]} 2. c4 {[%clk 00:55:13]} {[%emt 00:00:14]} c6 {[%clk 00:41:45]}
{[%emt 00:00:04]} 3. Nf3 {[%clk 00:55:01]} {[%emt 00:00:21]} Nf6 {[%clk
00:41:49]} {[%emt 00:00:07]} 4. Qc2 {[%clk 00:55:06]} {[%emt 00:00:04]} e6
{[%clk 00:38:17]} {[%emt 00:03:42]} 5. Bg5 {[%clk 00:54:50]} {[%emt 00:00:25]}
Be7 {[%clk 00:35:12]} {[%emt 00:03:16]} 6. e3 {[%clk 00:54:23]} {[%emt
00:00:37]} dxc4 {[%clk 00:33:16]} {[%emt 00:02:06]} 7. Bxc4 {[%clk 00:54:01]}
{[%emt 00:00:31]} b5 {[%clk 00:32:16]} {[%emt 00:01:11]} 8. Bd3 {[%clk
00:52:47]} {[%emt 00:01:24]} Bb7 {[%clk 00:29:56]} {[%emt 00:02:30]} 9. O-O
{[%clk 00:49:46]} {[%emt 00:03:10]} Nbd7 {[%clk 00:29:07]} {[%emt 00:01:00]} 10.
Nbd2 {[%clk 00:47:57]} {[%emt 00:02:00]} a6 {[%clk 00:26:31]} {[%emt 00:02:46]}
11. Rac1 {[%clk 00:46:16]} {[%emt 00:01:50]} Rc8 {[%clk 00:25:35]} {[%emt
00:01:06]} 12. Qb1 {[%clk 00:41:33]} {[%emt 00:04:53]} c5 {[%clk 00:20:06]}
{[%emt 00:05:40]} 13. dxc5 {[%clk 00:39:25]} {[%emt 00:02:18]} Nxc5 {[%clk
00:19:04]} {[%emt 00:01:12]} 14. Be2 {[%clk 00:37:58]} {[%emt 00:01:37]} O-O
{[%clk 00:15:47]} {[%emt 00:03:27]} 15. Rfd1 {[%clk 00:35:13]} {[%emt
00:02:54]} Nd5 {[%clk 00:13:39]} {[%emt 00:02:18]} 16. Bxe7 {[%clk 00:32:30]}
{[%emt 00:02:54]} Qxe7 {[%clk 00:13:47]} {[%emt 00:00:02]} 17. Nf1 {[%clk
00:28:17]} {[%emt 00:04:22]} Qf6 {[%clk 00:11:52]} {[%emt 00:02:05]} 18. Ng3
{[%clk 00:23:43]} {[%emt 00:04:44]} Qg6 {[%clk 00:06:50]} {[%emt 00:05:12]} 19.
Qxg6 {[%clk 00:20:49]} {[%emt 00:03:04]} hxg6 {[%clk 00:06:41]} {[%emt
00:00:19]} 20. b3 {[%clk 00:18:02]} {[%emt 00:02:57]} b4 {[%clk 00:04:22]}
{[%emt 00:02:30]} 21. h3 {[%clk 00:14:30]} {[%emt 00:03:42]} Nc3 {[%clk
00:03:51]} {[%emt 00:00:40]} 22. Rd2 {[%clk 00:14:10]} {[%emt 00:00:30]} Rfd8
{[%clk 00:03:09]} {[%emt 00:00:53]} 23. Rd4 {[%clk 00:12:31]} {[%emt 00:01:50]}
a5 {[%clk 00:02:01]} {[%emt 00:01:18]} 24. Kf1 {[%clk 00:11:07]} {[%emt
00:01:33]} Nxe2 {[%clk 00:01:30]} {[%emt 00:00:40]} 25. Kxe2 {[%clk 00:10:51]}
{[%emt 00:00:26]} Ba6+ {[%clk 00:01:36]} {[%emt 00:00:05]} 26. Kd2 {[%clk
00:10:23]} {[%emt 00:00:37]} f6 {[%clk 00:00:37]} {[%emt 00:01:10]} 27. h4
{[%clk 00:10:10]} {[%emt 00:00:23]} e5 {[%clk 00:00:43]} {[%emt 00:00:04]} 28.
Rxd8+ {[%clk 00:10:07]} {[%emt 00:00:13]} Rxd8+ {[%clk 00:00:51]} {[%emt
00:00:02]} 29. Kc2 {[%clk 00:10:07]} {[%emt 00:00:13]} a4 {[%clk 00:00:29]}
{[%emt 00:00:30]} 30. Nd2 {[%clk 00:09:39]} {[%emt 00:00:38]} Nd3 {[%clk
00:00:19]} {[%emt 00:00:19]} 31. Rf1 {[%clk 00:09:31]} {[%emt 00:00:11]} Rc8+
{[%clk 00:00:18]} {[%emt 00:00:19]} 32. Nc4 {[%clk 00:09:11]} {[%emt 00:00:30]}
axb3+ {[%clk 00:00:16]} {[%emt 00:00:12]} 33. axb3 {[%clk 00:09:10]} {[%emt
00:00:10]} Nc5 {[%clk 00:00:23]} {[%emt 00:00:04]} 34. Rd1 {[%clk 00:08:35]}
{[%emt 00:00:46]} Bxc4 {[%clk 00:00:17]} {[%emt 00:00:16]} 35. bxc4 {[%clk
00:08:40]} {[%emt 00:00:04]} Ra8 {[%clk 00:00:21]} {[%emt 00:00:06]} 36. Rb1
{[%emt 00:01:26]} Ra2+ {[%clk 00:00:21]} 37. Rb2 {[%clk 00:06:57]} {[%emt
00:00:46]} b3+ {[%clk 00:00:26]} {[%emt 00:00:05]} 38. Kc3 {[%clk 00:06:54]}
{[%emt 00:00:11]} Na4+ {[%clk 00:00:24]} {[%emt 00:00:14]} 39. Kxb3 {[%clk
00:06:15]} {[%emt 00:00:49]} Rxb2+ {[%clk 00:00:31]} {[%emt 00:00:03]} 40. Kxa4
{[%clk 00:06:19]} {[%emt 00:00:06]} Kf7 {[%clk 00:00:26]} {[%emt 00:00:15]} 41.
Ne4 {[%clk 00:05:54]} {[%emt 00:00:34]} Ke6 {[%clk 00:00:27]} {[%emt 00:00:10]}
42. g4 {[%clk 00:04:34]} {[%emt 00:01:30]} f5 {[%clk 00:00:28]} {[%emt
00:00:09]} 43. gxf5+ {[%clk 00:04:22]} {[%emt 00:00:21]} gxf5 {[%clk 00:00:35]}
{[%emt 00:00:04]} 44. Nc5+ {[%clk 00:04:19]} {[%emt 00:00:13]} Kd6 {[%emt
00:00:10]} 45. Nd3 {[%clk 00:04:24]} Rd2 {[%clk 00:00:38]} {[%emt 00:00:11]} 46.
Nb4 {[%clk 00:03:02]} {[%emt 00:01:33]} Kc5 {[%clk 00:00:32]} {[%emt 00:00:16]}
0-1

[Event "Kwalificatie NJK A Groningen"]
[Site "Hoogkerk, Netherlands"]
[Date "2023.02.18"]
[Round "1.3"]
[White "Smid, Jelle"]
[Black "Pijls, Coun"]
[Result "1-0"]
[TimeControl "55 min. + 10 sec./zet"]
[WhiteElo "1920"]
[BlackElo "1651"]

1. g3 {[%clk 00:54:50]} {[%emt 00:00:30]} Nf6 {[%clk 00:55:11]} {[%emt
00:00:09]} 2. Bg2 {[%clk 00:54:53]} {[%emt 00:00:07]} d5 {[%clk 00:55:09]}
{[%emt 00:00:13]} 3. d3 {[%clk 00:54:44]} {[%emt 00:00:18]} c5 {[%clk
00:53:36]} {[%emt 00:01:44]} 4. e4 {[%clk 00:53:56]} {[%emt 00:00:58]} dxe4
{[%clk 00:52:20]} {[%emt 00:01:26]} 5. dxe4 {[%clk 00:53:58]} {[%emt 00:00:08]}
Qxd1+ {[%clk 00:51:36]} {[%emt 00:00:53]} 6. Kxd1 {[%clk 00:54:00]} {[%emt
00:00:08]} Nc6 {[%clk 00:50:22]} {[%emt 00:01:25]} 7. c3 {[%clk 00:52:55]}
{[%emt 00:01:15]} Be6 {[%clk 00:48:08]} {[%emt 00:02:25]} 8. Kc2 {[%clk
00:51:23]} {[%emt 00:01:41]} O-O-O {[%clk 00:44:49]} {[%emt 00:03:29]} 9. b3
{[%clk 00:48:53]} {[%emt 00:02:40]} Ng4 {[%clk 00:42:21]} {[%emt 00:02:38]} 10.
Nh3 {[%clk 00:48:20]} {[%emt 00:00:43]} f5 {[%clk 00:42:29]} 11. Nf4 {[%clk
00:47:34]} {[%emt 00:00:56]} Bf7 {[%clk 00:40:28]} {[%emt 00:02:12]} 12. f3
{[%clk 00:47:14]} {[%emt 00:00:30]} e5 {[%clk 00:39:52]} {[%emt 00:00:46]} 13.
fxg4 {[%clk 00:43:08]} {[%emt 00:04:15]} exf4 {[%clk 00:39:54]} {[%emt
00:00:08]} 14. gxf5 {[%clk 00:42:32]} {[%emt 00:00:47]} fxg3 {[%clk 00:39:56]}
{[%emt 00:00:08]} 15. hxg3 {[%clk 00:42:34]} {[%emt 00:00:07]} Be7 {[%clk
00:36:29]} {[%emt 00:03:37]} 16. Bf4 {[%clk 00:40:47]} {[%emt 00:01:58]} Bf6
{[%clk 00:36:10]} {[%emt 00:00:29]} 17. Nd2 {[%clk 00:39:54]} {[%emt 00:01:03]}
Rhe8 {[%clk 00:31:03]} {[%emt 00:05:18]} 18. Rae1 {[%clk 00:36:33]} {[%emt
00:03:30]} c4 {[%clk 00:26:04]} {[%emt 00:05:09]} 19. Nf3 {[%clk 00:35:07]}
{[%emt 00:01:35]} Bxc3 {[%clk 00:22:09]} {[%emt 00:04:05]} 20. Kxc3 {[%clk
00:33:59]} {[%emt 00:01:18]} Rd3+ {[%clk 00:22:08]} {[%emt 00:00:12]} 21. Kb2
{[%clk 00:33:14]} {[%emt 00:00:55]} c3+ {[%clk 00:19:53]} {[%emt 00:02:25]} 22.
Kc1 {[%clk 00:31:08]} {[%emt 00:02:16]} Nb4 {[%clk 00:13:05]} {[%emt 00:06:57]}
23. a3 {[%clk 00:30:50]} {[%emt 00:00:29]} Na2+ {[%clk 00:12:02]} {[%emt
00:01:13]} 24. Kc2 {[%clk 00:30:46]} {[%emt 00:00:14]} Red8 {[%clk 00:10:43]}
{[%emt 00:01:29]} 25. Ra1 {[%clk 00:29:28]} {[%emt 00:01:28]} 1-0

[Event "Kwalificatie NJK A Groningen"]
[Site "Hoogkerk, Netherlands"]
[Date "2023.02.18"]
[Round "1.4"]
[White "De Vries, Arjan"]
[Black "Staal, Ryan"]
[Result "1-0"]
[TimeControl "55 min. + 10 sec./zet"]
[WhiteElo "1645"]
[BlackElo "1911"]

1. e4 {[%clk 00:55:17]} {[%emt 00:00:03]} e5 {[%clk 00:55:15]} {[%emt
00:00:06]} 2. Nf3 {[%clk 00:55:21]} {[%emt 00:00:06]} Nc6 {[%clk 00:55:20]}
{[%emt 00:00:04]} 3. Bc4 {[%clk 00:55:10]} {[%emt 00:00:22]} Bc5 {[%clk
00:55:21]} {[%emt 00:00:09]} 4. c3 {[%clk 00:54:30]} {[%emt 00:00:50]} Nf6
{[%clk 00:55:25]} {[%emt 00:00:06]} 5. d4 {[%clk 00:54:22]} {[%emt 00:00:18]}
exd4 {[%clk 00:55:28]} {[%emt 00:00:06]} 6. cxd4 {[%clk 00:54:25]} {[%emt
00:00:07]} Bb4+ {[%clk 00:55:31]} {[%emt 00:00:08]} 7. Bd2 {[%clk 00:54:22]}
{[%emt 00:00:13]} Bxd2+ {[%clk 00:54:50]} {[%emt 00:00:51]} 8. Nbxd2 {[%clk
00:54:27]} {[%emt 00:00:05]} d6 {[%clk 00:53:43]} {[%emt 00:01:16]} 9. O-O
{[%clk 00:53:39]} {[%emt 00:00:59]} Bg4 {[%clk 00:53:43]} {[%emt 00:00:10]} 10.
Qb3 {[%clk 00:53:18]} {[%emt 00:00:31]} O-O {[%clk 00:52:19]} {[%emt 00:01:34]}
11. Qxb7 {[%clk 00:48:22]} {[%emt 00:05:05]} Na5 {[%clk 00:51:20]} {[%emt
00:01:10]} 12. Qa6 {[%clk 00:48:19]} {[%emt 00:00:13]} Bxf3 {[%clk 00:49:49]}
{[%emt 00:01:41]} 13. Nxf3 {[%clk 00:48:18]} {[%emt 00:00:11]} Nxc4 {[%clk
00:49:44]} {[%emt 00:00:15]} 14. Qxc4 {[%clk 00:48:24]} {[%emt 00:00:04]} Nxe4
{[%clk 00:49:18]} {[%emt 00:00:36]} 15. Rac1 {[%clk 00:47:12]} {[%emt
00:01:21]} Rc8 {[%clk 00:47:34]} {[%emt 00:01:55]} 16. Qa6 {[%clk 00:46:21]}
{[%emt 00:01:01]} Rb8 {[%clk 00:43:32]} {[%emt 00:04:11]} 17. b3 {[%clk
00:46:05]} {[%emt 00:00:27]} Nf6 {[%clk 00:40:53]} {[%emt 00:02:49]} 18. Qxa7
{[%clk 00:45:36]} {[%emt 00:00:39]} Ra8 {[%clk 00:40:31]} {[%emt 00:00:32]} 19.
Qxc7 {[%clk 00:45:38]} {[%emt 00:00:07]} Qxc7 {[%clk 00:40:26]} {[%emt
00:00:14]} 20. Rxc7 {[%clk 00:45:42]} {[%emt 00:00:07]} Rxa2 {[%clk 00:40:30]}
{[%emt 00:00:07]} 21. Rb1 {[%clk 00:45:34]} {[%emt 00:00:18]} Rb8 {[%clk
00:38:26]} {[%emt 00:02:14]} 22. h3 {[%clk 00:44:40]} {[%emt 00:01:04]} h6
{[%clk 00:38:11]} {[%emt 00:00:25]} 23. Rc6 {[%clk 00:44:21]} {[%emt 00:00:28]}
Ne4 {[%clk 00:35:34]} {[%emt 00:02:48]} 24. b4 {[%clk 00:44:06]} {[%emt
00:00:25]} Rxf2 {[%clk 00:33:40]} {[%emt 00:02:04]} 25. b5 {[%clk 00:40:25]}
{[%emt 00:03:51]} Re2 {[%clk 00:31:00]} {[%emt 00:02:49]} 26. b6 {[%emt
00:01:46]} Nf6 {[%clk 00:30:35]} 27. Rxd6 {[%clk 00:39:11]} {[%emt 00:00:22]}
Re7 {[%clk 00:29:18]} {[%emt 00:01:26]} 28. Kh2 {[%clk 00:37:51]} {[%emt
00:01:31]} Ne4 {[%clk 00:28:15]} {[%emt 00:01:14]} 29. Rc6 {[%clk 00:37:15]}
{[%emt 00:00:45]} Nf6 {[%clk 00:25:22]} {[%emt 00:03:03]} 30. Ne5 {[%clk
00:35:22]} {[%emt 00:02:03]} Reb7 {[%clk 00:24:17]} {[%emt 00:01:15]} 31. Nc4
{[%clk 00:34:21]} {[%emt 00:01:11]} Nd5 {[%clk 00:22:36]} {[%emt 00:01:51]} 32.
Rc5 {[%clk 00:32:27]} {[%emt 00:02:04]} Nc3 {[%clk 00:21:00]} {[%emt 00:01:46]}
33. Rb3 {[%clk 00:32:31]} {[%emt 00:00:07]} Ne4 {[%clk 00:18:45]} {[%emt
00:02:24]} 34. Rc7 {[%clk 00:31:31]} {[%emt 00:01:10]} Nf6 {[%clk 00:16:34]}
{[%emt 00:02:21]} 35. Rxb7 {[%clk 00:31:03]} {[%emt 00:00:38]} Rxb7 {[%clk
00:16:42]} {[%emt 00:00:01]} 36. Na5 {[%clk 00:31:06]} {[%emt 00:00:07]} Rb8
{[%clk 00:16:30]} {[%emt 00:00:22]} 37. b7 {[%clk 00:31:10]} {[%emt 00:00:07]}
1-0

[Event "Kwalificatie NJK A Groningen"]
[Site "Hoogkerk, Netherlands"]
[Date "2023.02.18"]
[Round "1.5"]
[White "Goudriaan, Rafael"]
[Black "Lee, Jungbin"]
[Result "1-0"]
[TimeControl "55 min. + 10 sec./zet"]
[WhiteElo "1882"]
[BlackElo "1640"]

1. e4 {[%clk 00:55:18]} c6 {[%clk 00:55:12]} {[%emt 00:00:10]} 2. d4 {[%clk
00:55:24]} {[%emt 00:00:04]} d5 {[%clk 00:55:09]} {[%emt 00:00:13]} 3. e5
{[%clk 00:55:28]} {[%emt 00:00:06]} Bf5 {[%clk 00:55:04]} {[%emt 00:00:14]} 4.
Nd2 {[%clk 00:55:35]} {[%emt 00:00:03]} e6 {[%clk 00:54:21]} {[%emt 00:00:53]}
5. Nb3 {[%clk 00:55:44]} {[%emt 00:00:02]} Nd7 {[%clk 00:52:34]} {[%emt
00:01:57]} 6. Be2 {[%clk 00:55:48]} {[%emt 00:00:05]} Qc7 {[%clk 00:51:37]}
{[%emt 00:01:07]} 7. Nf3 {[%clk 00:55:43]} {[%emt 00:00:15]} Ne7 {[%clk
00:50:40]} {[%emt 00:01:07]} 8. O-O {[%clk 00:55:43]} {[%emt 00:00:10]} c5
{[%clk 00:48:45]} {[%emt 00:02:05]} 9. c3 {[%clk 00:55:44]} {[%emt 00:00:10]}
Nc6 {[%clk 00:48:06]} {[%emt 00:00:49]} 10. Ne1 {[%clk 00:53:57]} {[%emt
00:01:56]} Be7 {[%clk 00:42:19]} {[%emt 00:05:58]} 11. Be3 {[%clk 00:53:43]}
{[%emt 00:00:23]} c4 {[%clk 00:39:25]} {[%emt 00:03:04]} 12. Nd2 {[%clk
00:53:04]} {[%emt 00:00:50]} O-O {[%clk 00:34:20]} {[%emt 00:05:14]} 13. f4
{[%clk 00:52:59]} {[%emt 00:00:16]} b5 {[%clk 00:26:10]} {[%emt 00:08:20]} 14.
g4 {[%clk 00:53:02]} {[%emt 00:00:06]} Be4 {[%clk 00:26:12]} {[%emt 00:00:09]}
15. Nxe4 {[%clk 00:51:31]} {[%emt 00:01:41]} dxe4 {[%clk 00:26:20]} {[%emt
00:00:02]} 16. Qc2 {[%clk 00:49:55]} {[%emt 00:01:46]} Nb6 {[%clk 00:23:57]}
{[%emt 00:02:33]} 17. Qxe4 {[%clk 00:49:44]} {[%emt 00:00:21]} a5 {[%clk
00:21:05]} {[%emt 00:03:02]} 18. f5 {[%clk 00:46:40]} {[%emt 00:03:14]} b4
{[%clk 00:20:24]} {[%emt 00:00:51]} 19. f6 {[%clk 00:45:34]} {[%emt 00:01:15]}
Bd8 {[%clk 00:16:48]} {[%emt 00:03:46]} 20. Rf3 {[%clk 00:45:14]} {[%emt
00:00:30]} g6 {[%clk 00:16:36]} {[%emt 00:00:23]} 21. Qf4 {[%clk 00:45:09]}
{[%emt 00:00:15]} 1-0

[Event "Kwalificatie NJK A Groningen"]
[Site "Hoogkerk, Netherlands"]
[Date "2023.02.18"]
[Round "1.6"]
[White "Lankester, Felix"]
[Black "Wierenga, JaÃ«l"]
[Result "0-1"]
[TimeControl "55 min. + 10 sec./zet"]
[WhiteElo "1600"]
[BlackElo "1879"]

1. Nf3 {[%clk 00:55:17]} {[%emt 00:01:11]} d5 {[%clk 00:55:14]} 2. d4 {[%clk
00:55:17]} c5 {[%clk 00:54:52]} 3. c3 {[%clk 00:53:16]} Nc6 {[%clk 00:53:51]} 4.
e3 {[%clk 00:53:11]} e6 {[%clk 00:53:35]} 5. Nbd2 {[%clk 00:52:57]} Nf6 {[%clk
00:53:28]} 6. Bd3 {[%clk 00:48:35]} Bd6 {[%clk 00:51:43]} 7. e4 {[%clk
00:43:45]} cxd4 {[%clk 00:49:35]} 8. cxd4 {[%clk 00:43:12]} dxe4 {[%clk
00:48:32]} 9. Bxe4 {[%clk 00:42:14]} O-O {[%clk 00:46:05]} 10. O-O {[%clk
00:41:16]} Qb6 {[%clk 00:42:24]} 11. Nc4 {[%clk 00:39:45]} Qc7 {[%clk
00:42:06]} 12. Nxd6 {[%clk 00:37:32]} Qxd6 {[%clk 00:42:14]} 13. Re1 {[%clk
00:37:40]} Rd8 {[%clk 00:40:59]} 14. Bxc6 {[%clk 00:35:47]} bxc6 {[%clk
00:40:08]} 15. Bg5 {[%clk 00:35:19]} Bb7 {[%clk 00:37:45]} 16. Qa4 {[%clk
00:30:09]} Rd7 {[%clk 00:31:21]} 17. Rac1 {[%clk 00:23:21]} Nd5 {[%clk
00:28:11]} 18. Ne5 {[%clk 00:21:35]} Rc7 {[%clk 00:27:31]} 19. Bd2 {[%clk
00:20:26]} Nb6 {[%clk 00:20:22]} 20. Qb4 {[%clk 00:16:03]} Rd8 {[%clk
00:20:10]} 21. Qxd6 {[%clk 00:15:29]} Rxd6 {[%clk 00:20:16]} 22. Nf3 {[%clk
00:14:42]} Nd5 {[%clk 00:19:20]} 23. Ba5 {[%clk 00:11:19]} Rc8 {[%clk
00:18:59]} 24. Rc5 {[%clk 00:09:52]} {[%emt 00:00:25]} Nf4 {[%clk 00:17:01]}
{[%emt 00:02:07]} 25. Re3 {[%clk 00:08:11]} {[%emt 00:01:51]} Rd5 {[%clk
00:16:35]} {[%emt 00:00:36]} 26. Bb4 {[%clk 00:07:48]} {[%emt 00:00:33]} Rcd8
{[%clk 00:14:57]} {[%emt 00:01:48]} 27. g3 {[%clk 00:07:22]} {[%emt 00:00:36]}
Ng6 {[%clk 00:14:02]} {[%emt 00:01:05]} 28. Ra3 {[%clk 00:06:11]} {[%emt
00:01:22]} a6 {[%clk 00:12:51]} {[%emt 00:01:20]} 29. Rb3 {[%clk 00:06:08]}
{[%emt 00:00:13]} f6 {[%clk 00:10:31]} {[%emt 00:02:31]} 30. Ba5 {[%clk
00:04:37]} {[%emt 00:01:41]} R8d7 {[%clk 00:10:19]} {[%emt 00:00:20]} 31. Rxd5
{[%clk 00:04:35]} {[%emt 00:00:13]} exd5 {[%clk 00:09:29]} {[%emt 00:01:00]} 32.
Ne1 {[%clk 00:04:15]} {[%emt 00:00:31]} Nf8 {[%clk 00:09:20]} {[%emt 00:00:19]}
33. Nd3 {[%clk 00:03:59]} {[%emt 00:00:24]} Ne6 {[%clk 00:09:22]} {[%emt
00:00:09]} 34. Bb6 {[%clk 00:03:18]} {[%emt 00:00:52]} Re7 {[%clk 00:08:35]}
{[%emt 00:00:56]} 35. Kf1 {[%clk 00:02:59]} {[%emt 00:00:29]} Kf7 {[%clk
00:07:33]} {[%emt 00:01:12]} 36. f4 {[%clk 00:03:07]} {[%emt 00:00:03]} Bc8
{[%clk 00:06:40]} {[%emt 00:01:01]} 37. Rc3 {[%clk 00:02:49]} {[%emt 00:00:29]}
Bb7 {[%clk 00:06:39]} {[%emt 00:00:12]} 38. Kf2 {[%clk 00:02:24]} {[%emt
00:00:35]} Re8 {[%clk 00:05:28]} {[%emt 00:01:20]} 39. h4 {[%clk 00:02:26]}
{[%emt 00:00:09]} h5 {[%clk 00:05:27]} {[%emt 00:00:11]} 40. Rb3 {[%clk
00:01:54]} {[%emt 00:00:43]} Bc8 {[%clk 00:04:52]} {[%emt 00:00:44]} 41. Rc3
{[%clk 00:01:53]} {[%emt 00:00:11]} Bb7 {[%clk 00:05:01]} {[%emt 00:00:01]} 42.
Rb3 {[%clk 00:02:02]} {[%emt 00:00:01]} Kg6 {[%clk 00:04:38]} {[%emt 00:00:33]}
43. Kf3 {[%clk 00:01:57]} {[%emt 00:00:15]} Kf5 {[%clk 00:04:33]} {[%emt
00:00:15]} 44. Ba7 {[%clk 00:01:37]} {[%emt 00:00:30]} Re7 {[%clk 00:04:34]}
{[%emt 00:00:08]} 45. Bb6 {[%clk 00:01:38]} {[%emt 00:00:10]} Re8 {[%clk
00:02:43]} {[%emt 00:02:00]} 46. Ba7 {[%clk 00:01:45]} {[%emt 00:00:04]} Re7
{[%clk 00:02:42]} {[%emt 00:00:10]} 47. Bb6 {[%clk 00:01:54]} {[%emt 00:00:02]}
Bc8 {[%clk 00:02:26]} {[%emt 00:00:25]} 48. Rc3 {[%clk 00:01:41]} {[%emt
00:00:24]} Bb7 {[%clk 00:02:04]} {[%emt 00:00:32]} 49. a4 {[%clk 00:01:47]}
{[%emt 00:00:03]} g5 {[%clk 00:01:58]} {[%emt 00:00:16]} 50. hxg5 {[%clk
00:01:36]} {[%emt 00:00:21]} fxg5 {[%clk 00:02:07]} 51. Rc1 {[%clk 00:01:24]}
{[%emt 00:00:22]} gxf4 {[%clk 00:01:31]} {[%emt 00:00:46]} 52. gxf4 {[%clk
00:01:25]} {[%emt 00:00:09]} a5 {[%clk 00:01:16]} {[%emt 00:00:26]} 53. Re1
{[%clk 00:01:16]} {[%emt 00:00:18]} Ba6 {[%clk 00:01:14]} {[%emt 00:00:13]} 54.
Nf2 {[%clk 00:01:13]} {[%emt 00:00:12]} Nxd4+ {[%clk 00:01:17]} {[%emt
00:00:08]} 55. Bxd4 {[%clk 00:01:07]} {[%emt 00:00:16]} Rxe1 {[%clk 00:01:25]}
{[%emt 00:00:02]} 56. Bb6 {[%clk 00:00:56]} {[%emt 00:00:20]} h4 {[%clk
00:01:27]} {[%emt 00:00:08]} 57. Bxa5 {[%clk 00:01:02]} {[%emt 00:00:04]} Ra1
{[%clk 00:01:31]} {[%emt 00:00:06]} 58. Bd8 {[%clk 00:01:00]} {[%emt 00:00:13]}
Rxa4 {[%clk 00:01:36]} {[%emt 00:00:04]} 0-1